bitfinex/quotes_SOLUSD_20250930
["timestamp","ask_amount","ask_price","bid_price","bid_amount"]
[1759198787303,13.59559401,210.55,210.51,0.67]
[1759198788999,13.59559401,210.55,210.52,0.67]
[1759198789506,13.59559401,210.55,210.52,5.42003538]
[1759198791206,0.66,210.54,210.5,5.42038416]
[1759198791387,0.72,210.54,210.5,5.42038416]
[1759198792192,13.59559401,210.55,210.51,0.69]
[1759198792395,14.31559401,210.55,210.51,0.69]
[1759198792703,14.31559401,210.55,210.5,4.75038416]
[1759198792901,14.31559401,210.55,210.52,0.69]
[1759198794091,14.31559401,210.55,210.52,5.44012231]
[1759198795508,131.6,210.56,210.53,0.69]
[1759198796082,131.6,210.56,210.54,0.69]
[1759198796382,131.6,210.56,210.55,0.69]
[1759198797389,131.6,210.56,210.55,5.43946568]
[1759198801093,13.59559401,210.62,210.55,17.31312989]
[1759198801413,14.31559401,210.62,210.56,0.69]
[1759198802617,0.72,210.64,210.57,16.62155101]
[1759198802808,13.59559401,210.63,210.58,0.69]
[1759198803007,13.59559401,210.64,210.58,0.69]
[1759198803396,13.59559401,210.65,210.58,0.69]
[1759198803793,131.6,210.66,210.58,0.69]
[1759198804227,0.72,210.67,210.58,0.69]
[1759198804430,13.59559401,210.68,210.58,0.69]
[1759198804941,13.59559401,210.68,210.59,16.61997244]
[1759198805233,13.59559401,210.68,210.6,0.69]
[1759198805802,0.72,210.69,210.6,15.06339614]
[1759198806021,13.59559401,210.7,210.61,0.69]
[1759198806238,0.72,210.69,210.61,0.69]
[1759198806839,0.72,210.69,210.62,4.74788719]
[1759198807008,0.72,210.68,210.62,5.43788719]
[1759198807201,0.72,210.68,210.63,0.69]
[1759198807524,0.72,210.68,210.64,0.69]
[1759198807705,0.72,210.68,210.65,0.69]
[1759198807900,13.59559401,210.7,210.62,16.61760516]
[1759198808106,0.72,210.69,210.63,0.69]
[1759198808625,60.12,210.73,210.63,0.69]
[1759198808924,14.31559401,210.72,210.64,16.61602734]
[1759198809119,14.31559401,210.72,210.65,0.69]
[1759198809120,0.72,210.71,210.65,0.69]
[1759198810823,0.72,210.71,210.66,4.74698566]
[1759198811027,0.72,210.71,210.67,0.69]
[1759198811426,0.72,210.7,210.66,4.74698566]
[1759198811732,14.31559401,210.73,210.67,0.69]
[1759198811930,14.31559401,210.73,210.66,4.74698566]
[1759198812107,0.72,210.72,210.66,4.74698566]
[1759198812426,0.72,210.72,210.66,5.43698566]
[1759198813726,18.34100681,210.73,210.66,5.43698566]
[1759198813935,0.72,210.72,210.66,5.43698566]
[1759198814117,13.59559401,210.73,210.67,0.69]
[1759198814321,14.31559401,210.73,210.67,0.69]
[1759198815724,131.6,210.74,210.67,0.69]
[1759198815928,131.6,210.74,210.68,16.61287259]
[1759198816233,0.7,210.73,210.68,16.61287259]
[1759198816438,0.7,210.73,210.69,0.7]
[1759198816620,0.7,210.73,210.7,0.7]
[1759198817741,131.6,210.74,210.7,0.7]
[1759198818036,132.3,210.74,210.7,0.7]
[1759198818434,132.3,210.74,210.71,4.74585923]
[1759198818820,131.6,210.74,210.71,4.74585923]
[1759198819042,0.7,210.73,210.71,4.74585923]
[1759198819726,131.6,210.74,210.72,0.7]
[1759198819915,131.6,210.74,210.73,0.7]
[1759198820112,0.2,210.75,210.71,4.74585923]
[1759198820315,0.2,210.75,210.72,0.7]
[1759198820511,0.2,210.75,210.73,4.74540881]
[1759198821248,0.2,210.75,210.74,0.7]
[1759198821912,0.2,210.75,210.73,4.74540881]
[1759198822120,0.2,210.75,210.73,5.44540881]
[1759198824920,0.2,210.75,210.74,0.7]
[1759198827131,0.2,210.75,210.74,5.44518363]
[1759198831744,0.2,210.78,210.74,17.30814272]
[1759198831934,0.2,210.78,210.77,26.0]
[1759198832143,0.2,210.78,210.77,59.36]
[1759198832339,1e-08,210.78,210.77,60.06]
[1759198833250,1e-08,210.78,210.77,64.80450823]
[1759198834549,1e-08,210.78,210.77,31.44450823]
[1759198834755,1e-08,210.78,210.77,38.80450823]
[1759198840657,0.1,210.81,210.77,50.6657788]
[1759198840863,0.1,210.81,210.78,0.7]
[1759198841862,0.1,210.81,210.79,4.74405806]
[1759198842176,0.1,210.81,210.8,34.04]
[1759198843265,0.1,210.81,210.8,38.78383301]
[1759198843663,0.1,210.81,210.8,5.44383301]
[1759198843972,0.1,210.81,210.8,38.78383301]
[1759198844275,0.1,210.81,210.8,38.08383301]
[1759198844460,0.1,210.81,210.8,38.78383301]
[1759198844656,0.1,210.81,210.8,5.44383301]
[1759198844862,0.81,210.81,210.8,38.08383301]
[1759198847254,0.1,210.81,210.8,38.08383301]
[1759198848676,0.1,210.81,210.8,38.78383301]
[1759198849055,0.1,210.81,210.8,38.08383301]
[1759198850474,0.1,210.81,210.8,38.78383301]
[1759198851572,0.1,210.81,210.8,38.08383301]
[1759198852168,0.1,210.81,210.8,38.74383301]
[1759198854278,0.1,210.81,210.8,38.08383301]
[1759198854592,0.82,210.81,210.8,38.08383301]
[1759198857878,0.1,210.81,210.8,38.08383301]
[1759198861497,0.82,210.81,210.8,38.08383301]
[1759198861672,0.1,210.81,210.8,38.08383301]
[1759198862292,0.1,210.81,210.8,38.74383301]
[1759198862499,0.82,210.81,210.8,4.74383301]
[1759198862678,0.82,210.81,210.8,33.32]
[1759198862882,0.1,210.81,210.8,33.32]
[1759198864104,0.1,210.81,210.8,38.06383301]
[1759198864292,0.82,210.81,210.77,4.74450823]
[1759198864486,0.1,210.81,210.78,33.32]
[1759198864701,0.82,210.81,210.78,33.32]
[1759198866096,0.82,210.81,210.79,4.74405806]
[1759198866400,0.82,210.81,210.8,33.32]
[1759198868490,0.82,210.81,210.8,38.06383301]
[1759198869192,1e-08,210.81,210.8,38.72383301]
[1759198869608,1e-08,210.81,210.8,5.40383301]
[1759198869788,1e-08,210.81,210.8,38.06383301]
[1759198870610,0.72000001,210.81,210.8,38.06383301]
[1759198870811,0.72000001,210.81,210.8,4.74383301]
[1759198870989,1e-08,210.81,210.8,38.72383301]
[1759198871188,1e-08,210.81,210.8,4.74383301]
[1759198871390,0.72000001,210.81,210.8,38.06383301]
[1759198871593,1e-08,210.81,210.8,38.06383301]
[1759198874113,0.72000001,210.81,210.8,38.06383301]
[1759198874296,0.72000001,210.81,210.8,33.32]
[1759198874497,0.72000001,210.81,210.78,4.74408727]
[1759198874798,0.72000001,210.81,210.76,26.0]
[1759198874799,1e-08,210.81,210.79,33.32]
[1759198875003,3.69662976,210.8,210.77,33.32]
[1759198875309,2.97662976,210.78,210.76,33.32]
[1759198875510,2.97662976,210.78,210.7,0.72]
[1759198875511,0.72,210.77,210.7,0.72]
[1759198875724,0.72,210.77,210.71,59.32]
[1759198875931,0.72,210.77,210.72,0.72]
[1759198876221,0.72,210.77,210.73,50.64893085]
[1759198877340,0.72,210.77,210.73,38.78540881]
[1759198877547,2.62448606,210.79,210.74,0.72]
[1759198877738,0.72,210.78,210.75,33.32]
[1759198879041,1.90448606,210.79,210.76,4.74473334]
[1759198879345,14.31559401,210.79,210.76,4.74473334]
[1759198880324,16.22008007,210.79,210.76,4.74473334]
[1759198880718,15.50008007,210.79,210.76,4.74473334]
[1759198881036,0.72,210.78,210.76,4.74473334]
[1759198881949,0.72,210.78,210.76,33.32]
[1759198882151,1e-08,210.81,210.77,0.71]
[1759198882343,1e-08,210.81,210.78,33.32]
[1759198882530,1e-08,210.81,210.78,34.03]
[1759198882729,1.90448607,210.81,210.75,0.71]
[1759198882929,2.57448606,210.8,210.76,33.32]
[1759198883150,2.57448606,210.8,210.76,34.03]
[1759198883632,1.90448607,210.81,210.76,33.32]
[1759198883831,2.57448607,210.81,210.77,0.71]
[1759198885451,1e-08,210.81,210.78,4.74428313]
[1759198886063,0.67000001,210.81,210.78,4.74428313]
[1759198886448,1e-08,210.81,210.78,5.45428313]
[1759198886956,1e-08,210.81,210.78,4.74428313]
[1759198887274,0.67000001,210.81,210.78,4.74428313]
[1759198887431,1e-08,210.81,210.77,16.60547537]
[1759198887637,1e-08,210.81,210.77,17.31547537]
[1759198887938,1.90448606,210.79,210.77,38.06450823]
[1759198888152,0.67,210.78,210.75,4.74495848]
[1759198888348,13.59559402,210.81,210.76,33.32]
[1759198888565,1.90448606,210.78,210.76,33.32]
[1759198888758,16.17008007,210.77,210.73,4.74524666]
[1759198889066,0.67,210.76,210.73,38.06524666]
[1759198889566,15.50008007,210.77,210.73,38.06524666]
[1759198889774,13.59559401,210.77,210.73,38.77524666]
[1759198889959,14.26559401,210.77,210.73,38.77524666]
[1759198892170,0.67,210.76,210.73,38.06524666]
[1759198892372,13.59559401,210.77,210.73,38.06524666]
[1759198892571,14.26559401,210.77,210.73,38.77524666]
[1759198893268,0.67,210.77,210.73,49.9287687]
[1759198893475,1.90448606,210.78,210.74,0.71]
[1759198894262,1.90448606,210.78,210.75,4.74495848]
[1759198894955,1.90448606,210.78,210.75,5.45495848]
[1759198895354,0.67,210.78,210.74,4.74518363]
[1759198895546,0.67,210.78,210.74,5.45518363]
[1759198895750,2.57448606,210.78,210.74,5.45518363]
[1759198896478,2.57448606,210.77,210.74,33.32]
[1759198897775,2.57448606,210.76,210.71,16.61050732]
[1759198897970,2.57448606,210.75,210.72,33.32]
[1759198898170,2.57448606,210.77,210.72,34.03]
[1759198898376,0.67,210.76,210.73,4.74540881]
[1759198898959,0.62255267,210.76,210.73,4.74540881]
[1759198899277,1.90448606,210.77,210.73,4.74540881]
[1759198899574,131.60000001,210.81,210.74,0.71]
[1759198899794,131.60000001,210.81,210.75,33.32]
[1759198900279,131.60000001,210.81,210.76,0.71]
[1759198900663,1e-08,210.81,210.77,4.74450823]
[1759198900966,1e-08,210.81,210.78,34.03]
[1759198901376,1e-08,210.81,210.79,0.71]
[1759198901567,1e-08,210.81,210.78,34.03]
[1759198902362,1e-08,210.81,210.78,33.32]
[1759198902563,1e-08,210.81,210.79,0.71]
[1759198903270,1e-08,210.81,210.8,4.74383301]
[1759198906170,1e-08,210.81,210.8,0.71]
[1759198906570,1e-08,210.81,210.79,4.74405806]
[1759198906772,1e-08,210.81,210.79,5.45405806]
[1759198907674,1e-08,210.81,210.79,4.74405806]
[1759198908188,1e-08,210.81,210.8,0.71]
[1759198908883,1e-08,210.81,210.8,5.45383301]
[1759198912473,1e-08,210.81,210.79,4.74405806]
[1759198912680,1e-08,210.81,210.79,5.42405806]
[1759198912894,1e-08,210.81,210.8,0.68]
[1759198913190,0.7,210.8,210.78,4.74427096]
[1759198913393,1.90448607,210.81,210.78,4.74427096]
[1759198913578,2.60448607,210.81,210.78,4.74427096]
[1759198913984,1.90448606,210.79,210.77,38.06449672]
[1759198914181,2.60448606,210.78,210.73,0.68]
[1759198914376,2.60448606,210.77,210.73,34.0]
[1759198914572,0.7,210.77,210.74,4.74518363]
[1759198914997,15.50008007,210.79,210.75,0.68]
[1759198915178,16.20008007,210.79,210.75,0.68]
[1759198915371,13.59559401,210.79,210.75,0.68]
[1759198915573,0.7,210.78,210.74,16.60814272]
[1759198915799,0.7,210.78,210.74,17.28814272]
[1759198916305,15.50008007,210.79,210.75,0.68]
[1759198916503,16.20008007,210.79,210.75,0.68]
[1759198916799,16.20008007,210.79,210.76,4.74473334]
[1759198917310,15.50008007,210.79,210.76,4.74473334]
[1759198917800,16.20008007,210.79,210.76,4.74473334]
[1759198918606,16.20008007,210.79,210.75,4.74495848]
[1759198918811,16.20008007,210.79,210.75,5.42495848]
[1759198919710,14.29559401,210.79,210.75,5.42495848]
[1759198920090,0.7,210.78,210.75,4.74495848]
[1759198920481,1.90448606,210.79,210.75,4.74495848]
[1759198920684,2.60448606,210.78,210.74,16.60814272]
[1759198920902,0.7,210.77,210.74,16.60814272]
[1759198921807,1.90448606,210.75,210.73,4.74538994]
[1759198921990,0.7,210.78,210.73,4.74538994]
[1759198922190,13.59559401,210.77,210.74,0.68]
[1759198922808,26.7,210.8,210.76,4.74473334]
[1759198923011,1e-08,210.81,210.77,34.0]
[1759198923191,1e-08,210.81,210.78,0.68]
[1759198923586,1e-08,210.81,210.79,0.68]
[1759198923899,1e-08,210.81,210.77,33.32]
[1759198924103,1e-08,210.81,210.78,0.68]
[1759198925418,0.7,210.8,210.76,34.0]
[1759198925621,0.7,210.8,210.76,0.68]
[1759198925923,1.90448606,210.8,210.76,33.32]
[1759198926210,13.59559401,210.8,210.77,0.68]
[1759198926794,1e-08,210.81,210.76,33.32]
[1759198927000,1e-08,210.81,210.77,0.68]
[1759198927195,0.70000001,210.81,210.77,0.68]
[1759198927389,0.70000001,210.81,210.78,4.74428313]
[1759198927595,1e-08,210.81,210.78,5.42428313]
[1759198929216,1e-08,210.81,210.79,0.68]
[1759198929597,1e-08,210.81,210.8,0.68]
[1759198930114,1e-08,210.81,210.8,34.0]
[1759198931014,1e-08,210.81,210.8,38.74383301]
[1759198943054,1e-08,210.81,210.8,38.04383301]
[1759198945133,0.68000001,210.81,210.8,38.04383301]
[1759198949428,1e-08,210.81,210.8,38.70383301]
[1759198951028,1e-08,210.81,210.8,38.04383301]
[1759198951338,1e-08,210.81,210.8,33.3]
[1759198951511,1e-08,210.81,210.8,33.96]
[1759198951710,1e-08,210.81,210.8,33.3]
[1759198953610,1e-08,210.81,210.8,38.04383301]
[1759198954037,1e-08,210.81,210.8,38.70383301]
[1759198959833,0.68,210.89,210.83,26.0]
[1759198960031,0.68,210.89,210.84,33.3]
[1759198960333,0.68,210.89,210.84,48.00204381]
[1759198960918,0.68,210.88,210.85,16.59947829]
[1759198961153,0.68,210.88,210.86,33.3]
[1759198961436,0.68,210.89,210.86,33.3]
[1759198962915,0.68,210.89,210.87,4.74225826]
[1759198963118,0.68,210.89,210.88,33.3]
[1759198963613,0.1,210.9,210.88,33.3]
[1759198963942,0.78,210.9,210.88,33.3]
[1759198965219,0.1,210.9,210.89,4.74180852]
[1759198965831,0.78,210.9,210.89,4.74180852]
[1759198966419,0.1,210.9,210.89,4.74180852]
[1759198968838,0.1,210.9,210.89,5.40180852]
[1759198969647,0.1,210.9,210.89,4.74180852]
[1759198969837,0.78,210.9,210.89,33.3]
[1759198970418,0.78,210.9,210.88,33.3]
[1759198970923,0.1,210.9,210.89,4.74180852]
[1759198972730,0.1,210.9,210.89,5.41180852]
[1759198972928,0.1,210.9,210.89,4.74180852]
[1759198973546,0.1,210.9,210.89,5.41180852]
[1759198974658,0.1,210.9,210.89,4.74180852]
[1759198974831,0.82,210.9,210.89,4.74180852]
[1759198975031,0.1,210.9,210.89,38.04180852]
[1759198981260,0.1,210.9,210.89,38.71180852]
[1759198981661,1e-08,210.92,210.91,26.0]
[1759198981848,1e-08,210.92,210.91,59.3]
[1759198982048,1e-08,210.92,210.91,59.97]
[1759198982651,1e-08,210.92,210.91,64.71135887]
[1759198985150,1e-08,210.92,210.91,64.69135887]
[1759198991068,1e-08,210.92,210.91,64.02135887]
[1759198991271,1e-08,210.92,210.91,64.69135887]
[1759198996978,0.1,211.02,210.97,26.0]
[1759198997152,1e-08,211.06,211.02,26.0]
[1759198997384,1e-08,211.06,211.03,33.28]
[1759198997558,1e-08,211.06,211.03,33.95]
[1759198997766,1e-08,211.06,211.04,0.67]
[1759198997973,1e-08,211.06,211.05,33.28]
[1759198998165,0.1,211.12,211.08,26.0]
[1759198998368,0.1,211.12,211.11,26.0]
[1759198998568,0.1,211.12,211.11,59.34]
[1759198999163,1e-08,211.12,211.11,59.34]
[1759198999478,1e-08,211.12,211.11,33.34]
[1759199000278,1e-08,211.12,211.11,38.07686703]
[1759199002391,1e-08,211.12,211.11,52.08102306]
[1759199003459,0.72000001,211.12,211.11,14.00415603]
[1759199003661,0.72000001,211.12,211.1,33.34]
[1759199003868,0.72,211.11,211.1,33.34]
[1759199004586,0.72,211.11,211.1,47.46154997]
[1759199005368,0.72,211.11,211.1,52.19864139]
[1759199009373,1e-08,211.12,211.1,52.19864139]
[1759199009569,0.72000001,211.12,211.1,52.19864139]
[1759199010165,1e-08,211.12,211.1,52.19864139]
[1759199012662,0.72,211.11,211.1,18.85864139]
[1759199012862,0.72,211.11,211.1,52.21864139]
[1759199016803,1e-08,211.12,211.1,52.21864139]
[1759199018292,1e-08,211.12,211.11,0.7]
[1759199018490,1e-08,211.12,211.1,52.21864139]
[1759199018989,1e-08,211.12,211.11,33.32]
[1759199019908,0.72000001,211.12,211.1,18.85864139]
[1759199020088,1e-08,211.12,211.1,18.85864139]
[1759199020297,1e-08,211.12,211.11,33.32]
[1759199020674,0.72000001,211.12,211.11,33.32]
[1759199021298,0.72000001,211.12,211.11,38.05686703]
[1759199021672,1e-08,211.12,211.11,38.05686703]
[1759199022597,1e-08,211.12,211.11,4.73686703]
[1759199022778,1e-08,211.12,211.11,38.05686703]
[1759199023266,1e-08,211.12,211.11,38.75686703]
[1759199024201,1.8969031,211.23,211.11,74.2833698]
[1759199024383,0.72,211.22,211.12,0.7]
[1759199024575,2.6169031,211.22,211.13,33.32]
[1759199024775,2.6169031,211.22,211.14,0.7]
[1759199024975,2.6169031,211.22,211.15,33.32]
[1759199025288,2.6169031,211.21,211.16,4.7357454]
[1759199025588,1.8969031,211.19,211.16,38.0557454]
[1759199025779,0.72,211.18,211.16,38.0557454]
[1759199028894,1.8969031,211.2,211.16,38.7557454]
[1759199029093,1.8969031,211.21,211.16,38.7557454]
[1759199029279,0.72,211.2,211.16,38.7557454]
[1759199029478,2.6169031,211.2,211.16,38.7557454]
[1759199031210,2.6169031,211.2,211.15,4.73596968]
[1759199031511,2.6169031,211.2,211.16,34.01]
[1759199032280,2.6169031,211.2,211.17,4.73552114]
[1759199033603,0.66,211.19,211.16,33.32]
[1759199033804,1.8969031,211.2,211.16,38.74568483]
[1759199034005,2.5569031,211.2,211.16,38.74568483]
[1759199034211,0.66,211.19,211.16,38.03568483]
[1759199034416,0.66,211.18,211.16,38.03568483]
[1759199034700,1.8969031,211.19,211.16,38.03568483]
[1759199034920,39.59559401,211.24,211.16,38.03568483]
[1759199034921,14.25559401,211.22,211.16,38.03568483]
[1759199035202,2.5569031,211.21,211.16,38.03568483]
[1759199035504,0.66,211.2,211.16,38.03568483]
[1759199035712,1.8969031,211.2,211.17,0.69]
[1759199035890,2.5569031,211.21,211.17,0.69]
[1759199036394,2.5569031,211.2,211.16,38.03568483]
[1759199036790,1.8969031,211.17,211.11,4.73686703]
[1759199037118,1.8969031,211.16,211.12,33.3]
[1759199037305,1.8969031,211.16,211.13,4.73641832]
[1759199037488,2.5569031,211.16,211.13,4.73641832]
[1759199037690,1.8969031,211.17,211.13,5.42641832]
[1759199037887,2.5569031,211.18,211.14,0.69]
[1759199038808,1.8969031,211.18,211.13,16.57746412]
[1759199038999,0.66,211.2,211.15,0.69]
[1759199039000,15.49249711,211.19,211.15,0.69]
[1759199039199,16.15249711,211.19,211.15,0.69]
[1759199039795,16.15249711,211.19,211.15,5.42588645]
[1759199040490,2.5569031,211.19,211.15,5.42588645]
[1759199041209,2.5569031,211.18,211.15,4.73588645]
[1759199041788,2.5569031,211.18,211.14,4.73619399]
[1759199041993,1.8969031,211.18,211.14,4.73619399]
[1759199042201,1.8969031,211.18,211.14,5.42619399]
[1759199042699,2.5569031,211.18,211.14,5.42619399]
[1759199043293,0.66,211.18,211.14,4.73619399]
[1759199043498,2.5569031,211.18,211.14,5.42619399]
[1759199044413,1.8969031,211.15,211.1,14.14658688]
[1759199044605,1.8969031,211.12,211.1,4.73703661]
[1759199044915,1.8969031,211.12,211.1,5.42703661]
[1759199046898,1.8969031,211.12,211.09,33.28]
[1759199047116,1.8969031,211.12,211.1,0.69]
[1759199047318,16.15249711,211.11,211.02,0.69]
[1759199047497,1.8969031,211.06,211.02,33.97]
[1759199047692,1.8969031,211.04,211.02,47.29440104]
[1759199048411,1.8969031,211.05,211.02,47.29440104]
[1759199048612,1.8969031,211.05,211.02,14.70440104]
[1759199048812,1.8969031,211.05,211.02,18.75316204]
[1759199049199,1.8969031,211.05,211.02,4.738761]
[1759199049200,1.8969031,211.04,211.02,4.738761]
[1759199049399,2.5569031,211.04,211.02,4.738761]
[1759199050619,1.8969031,211.04,211.01,4.73911189]
[1759199051003,1.8969031,211.04,211.01,5.42911189]
[1759199051199,15.49249711,211.05,211.01,19.8813913]
[1759199051412,13.59559401,211.05,211.02,0.69]
[1759199051723,0.66,211.04,211.01,4.73911189]
[1759199052303,13.59559401,211.05,211.01,4.73911189]
[1759199052515,14.25559401,211.05,211.01,4.73911189]
[1759199053296,2.5569031,211.04,210.99,4.73944123]
[1759199053623,1.8969031,211.02,210.97,4.73990393]
[1759199053817,1.8969031,211.0,210.93,12.54200737]
[1759199054020,0.66,210.99,210.94,33.38]
[1759199054322,0.66,210.98,210.94,34.07]
[1759199054523,0.66,211.01,210.95,0.69]
[1759199054723,13.59559401,211.02,210.95,0.69]
[1759199054724,15.49249711,211.02,210.96,4.74023511]
[1759199054911,15.49249711,211.02,210.96,17.28082289]
[1759199055106,133.88940021,211.03,210.97,0.69]
[1759199056123,133.88940021,211.03,210.9,4.74158368]
[1759199056124,1.8969031,210.98,210.9,4.74158368]
[1759199056312,1.8969031,210.93,210.88,0.2]
[1759199056514,1.8969031,210.91,210.88,14.79941649]
[1759199056801,1.8969031,210.91,210.88,0.2]
[1759199057406,1.8969031,210.9,210.88,0.2]
[1759199057624,1.8969031,210.89,210.88,0.2]
[1759199057825,1.8969031,210.9,210.88,4.94200815]
[1759199058125,1.8969031,210.91,210.88,4.94200815]
[1759199058317,1.8969031,210.91,210.88,5.63200815]
[1759199059323,0.66,210.94,210.89,0.69]
[1759199059512,0.66,210.94,210.9,0.69]
[1759199059829,0.66,210.94,210.88,17.4870916]
[1759199061803,0.66,210.94,210.9,4.74158368]
[1759199062009,2.97154619,210.95,210.91,0.67]
[1759199062232,37.14154619,210.97,210.92,0.67]
[1759199063311,36.43154619,210.97,210.93,4.7409093]
[1759199063511,132.04249711,210.96,210.93,4.7409093]
[1759199066115,13.59559401,210.99,210.94,0.67]
[1759199066314,3.68154619,210.98,210.93,4.7409093]
[1759199066514,0.71,210.97,210.93,4.7409093]
[1759199066835,0.71,210.96,210.93,4.7409093]
[1759199067036,3.68154619,210.98,210.93,5.4109093]
[1759199067332,0.71,210.97,210.93,5.4109093]
[1759199068122,3.68154619,210.97,210.93,5.4109093]
[1759199068918,2.97154619,210.98,210.94,0.67]
[1759199069126,3.68154619,210.98,210.94,0.67]
[1759199070335,3.68154619,210.98,210.95,4.74045982]
[1759199072346,0.71,210.97,210.9,0.67]
[1759199072560,2.97154619,210.96,210.9,12.52395922]
[1759199072853,3.68154619,210.95,210.9,11.85395922]
[1759199073016,0.71,210.94,210.9,12.52395922]
[1759199074332,2.97154619,210.95,210.9,16.5955429]
[1759199074537,3.68154619,210.95,210.91,0.67]
[1759199075119,0.71,210.94,210.9,4.74158368]
[1759199075323,0.71,210.94,210.9,5.41158368]
[1759199075536,134.3040433,210.97,210.91,0.67]
[1759199075849,131.33249711,210.97,210.91,0.67]
[1759199076033,0.71,210.96,210.91,0.67]
[1759199076236,0.71,210.95,210.91,0.67]
[1759199076445,132.04249711,210.97,210.92,0.67]
[1759199076645,0.71,210.96,210.92,0.67]
[1759199076851,0.71,210.96,210.9,11.85395922]
[1759199077055,0.71,210.96,210.9,12.52395922]
[1759199077278,131.33249711,210.97,210.9,11.85395922]
[1759199077575,135.0140433,210.97,210.91,0.67]
[1759199078341,132.04249711,210.97,210.92,4.74113407]
[1759199078544,0.71,210.96,210.92,5.41113407]
[1759199080033,0.71,210.95,210.9,11.85395922]
[1759199080233,0.71,210.94,210.9,12.52395922]
[1759199080442,0.71,210.96,210.91,0.67]
[1759199081142,0.71,210.95,210.91,0.67]
[1759199082165,134.3040433,210.97,210.91,4.74114663]
[1759199082166,0.71,210.94,210.91,4.74114663]
[1759199082336,139.04407209,210.97,210.91,4.74114663]
[1759199082664,0.71,210.95,210.91,4.74114663]
[1759199083360,0.71,210.95,210.91,5.41114663]
[1759199084568,0.71,210.94,210.89,17.26618766]
[1759199084756,0.71,210.94,210.9,0.67]
[1759199085064,0.71,210.96,210.91,0.67]
[1759199085373,0.71,210.95,210.91,0.67]
[1759199086044,0.71,210.95,210.92,0.67]
[1759199086374,134.3040433,210.97,210.92,0.67]
[1759199086548,0.71,210.96,210.92,0.67]
[1759199086748,0.71,210.96,210.93,4.7409093]
[1759199088663,134.3040433,210.97,210.93,5.4109093]
[1759199088868,0.71,210.96,210.91,0.67]
[1759199089181,0.71,210.96,210.92,0.67]
[1759199089854,0.71,210.96,210.93,4.7409093]
[1759199090266,131.33249711,210.97,210.94,0.67]
[1759199091385,131.33249711,210.97,210.92,0.67]
[1759199091554,132.05249711,210.97,210.93,0.67]
[1759199091960,132.05249711,210.97,210.94,4.74068455]
[1759199093275,131.33249711,210.96,210.94,4.74068455]
[1759199095173,131.33249711,210.96,210.95,0.67]
[1759199095375,134.3040433,211.03,210.95,0.67]
[1759199095578,131.33249711,211.02,210.95,0.67]
[1759199095883,2.97154619,211.01,210.95,0.67]
[1759199096075,3.69154619,211.01,210.95,0.67]
[1759199096375,0.72,211.01,210.95,0.67]
[1759199100479,2.97154619,210.99,210.96,4.74023511]
[1759199100662,0.72,210.98,210.96,4.74023511]
[1759199101057,3.69154619,210.97,210.94,4.74053377]
[1759199101250,2.97154619,210.95,210.91,4.74133753]
[1759199101469,0.72,210.94,210.91,4.74133753]
[1759199101670,2.97154619,210.93,210.88,12.054738]
[1759199101884,3.69154619,210.93,210.89,0.67]
[1759199102533,2.97154619,210.93,210.89,4.74180852]
[1759199102671,3.69154619,210.92,210.89,4.74180852]
[1759199102880,2.97154619,210.92,210.89,4.74180852]
[1759199103054,3.69154619,210.92,210.89,4.74180852]
[1759199103262,0.72,210.92,210.89,4.74180852]
[1759199103462,3.69154619,210.92,210.89,4.74180852]
[1759199103978,2.97154619,210.93,210.89,5.41180852]
[1759199104199,3.69154619,210.93,210.89,5.41180852]
[1759199104365,2.97154619,210.93,210.89,4.74180852]
[1759199104675,3.69154619,210.93,210.89,4.74180852]
[1759199104884,3.69154619,210.93,210.89,5.41180852]
[1759199106577,2.97154619,210.92,210.89,5.41180852]